[Event "*** Titled Tuesday Blitz"]
[Site "Chess.com"]
[Date "2019.01.01"]
[Round "2"]
[White "ElHelvetico"]
[Black "VerdeNotte"]
[Result "0-1"]
[WhiteElo "2565"]
[BlackElo "2852"]
[TimeControl "180+2"]
[EndTime "13:23:35 PST"]
[Termination "VerdeNotte won by resignation"]

1. e4 {[%clk 0:03:01.9]} 1... d6 {[%clk 0:02:58.6]} 2. d4 {[%clk 0:03:02.4]}
2... Nf6 {[%clk 0:02:59.1]} 3. Nc3 {[%clk 0:03:04]} 3... g6 {[%clk 0:03:00.4]}
4. Be3 {[%clk 0:03:04.5]} 4... a6 {[%clk 0:02:55.2]} 5. f3 {[%clk 0:03:00]} 5...
Nbd7 {[%clk 0:02:50]} 6. Qd2 {[%clk 0:02:59.6]} 6... b5 {[%clk 0:02:50.7]} 7. g4
{[%clk 0:02:53.4]} 7... Bb7 {[%clk 0:02:51.3]} 8. h4 {[%clk 0:02:46.5]} 8... b4
{[%clk 0:02:42]} 9. Nd1 {[%clk 0:02:47]} 9... c5 {[%clk 0:02:42.8]} 10. dxc5
{[%clk 0:02:17.8]} 10... dxc5 {[%clk 0:02:39.4]} 11. h5 {[%clk 0:02:15.7]} 11...
Qc7 {[%clk 0:02:33.3]} 12. hxg6 {[%clk 0:02:10.2]} 12... fxg6 {[%clk 0:02:33.2]}
13. Nf2 {[%clk 0:02:01.4]} 13... O-O-O {[%clk 0:02:30.6]} 14. O-O-O {[%clk
0:02:01.1]} 14... Bg7 {[%clk 0:02:31.5]} 15. Qe1 {[%clk 0:01:42.2]} 15... Ne5
{[%clk 0:02:24.3]} 16. g5 {[%clk 0:01:37.9]} 16... Rxd1+ {[%clk 0:02:22]} 17.
Nxd1 {[%clk 0:01:38.1]} 17... Nh5 {[%clk 0:02:13.4]} 18. f4 {[%clk 0:01:36]}
18... Bxe4 {[%clk 0:02:03.8]} 19. Rxh5 {[%clk 0:01:33.4]} 19... gxh5 {[%clk
0:01:59.6]} 20. fxe5 {[%clk 0:01:34.5]} 20... Qxe5 {[%clk 0:01:54.6]} 21. Bxa6+
{[%clk 0:01:33.2]} 21... Kc7 {[%clk 0:01:50.4]} 22. Ne2 {[%clk 0:01:24.3]} 22...
Rf8 {[%clk 0:01:49.8]} 23. Bc4 {[%clk 0:01:14]} 23... Bg6 {[%clk 0:01:36.1]} 24.
Qh4 {[%clk 0:01:00.5]} 24... Qe4 {[%clk 0:01:28.3]} 25. Qxe4 {[%clk 0:00:53.4]}
25... Bxe4 {[%clk 0:01:30.2]} 26. Nf4 {[%clk 0:00:55]} 26... Bf5 {[%clk
0:01:03.3]} 27. Nxh5 {[%clk 0:00:34.3]} 27... Bd4 {[%clk 0:01:01.7]} 28. Bxd4
{[%clk 0:00:30]} 28... cxd4 {[%clk 0:01:03.6]} 29. Ng3 {[%clk 0:00:28.2]} 29...
Bg6 {[%clk 0:00:59.6]} 30. Kd2 {[%clk 0:00:27.8]} 30... e5 {[%clk 0:00:57.9]}
31. Bd3 {[%clk 0:00:28.3]} 31... Rf4 {[%clk 0:00:49.1]} 32. Bxg6 {[%clk
0:00:22.9]} 32... hxg6 {[%clk 0:00:51]} 33. c3 {[%clk 0:00:12.9]} 33... Rg4
{[%clk 0:00:43.9]} 34. Ne2 {[%clk 0:00:12.9]} 34... dxc3+ {[%clk 0:00:43.4]} 35.
bxc3 {[%clk 0:00:14.8]} 35... bxc3+ {[%clk 0:00:44.1]} 36. Ndxc3 {[%clk
0:00:15.1]} 36... Rxg5 {[%clk 0:00:45.5]} 37. Ke3 {[%clk 0:00:16.6]} 37... Rg4
{[%clk 0:00:44.6]} 38. Ne4 {[%clk 0:00:16]} 38... Kc6 {[%clk 0:00:44.7]} 39. a4
{[%clk 0:00:16.1]} 39... Rh4 {[%clk 0:00:44.4]} 40. Kf3 {[%clk 0:00:15.1]} 40...
Kd5 {[%clk 0:00:33.2]} 41. N2c3+ {[%clk 0:00:14]} 41... Kd4 {[%clk 0:00:31.4]}
42. a5 {[%clk 0:00:14.7]} 42... Rf4+ {[%clk 0:00:29.1]} 43. Ke2 {[%clk 0:00:13]}
43... Rf8 {[%clk 0:00:23.9]} 44. Kd2 {[%clk 0:00:08.3]} 44... Ra8 {[%clk
0:00:23.5]} 45. Nd6 {[%clk 0:00:05.7]} 45... Rxa5 {[%clk 0:00:23.3]} 46. Ne2+
{[%clk 0:00:07.2]} 46... Kd5 {[%clk 0:00:23.4]} 47. Nf7 {[%clk 0:00:06.9]} 47...
Ke4 {[%clk 0:00:21.6]} 48. Ng5+ {[%clk 0:00:05.1]} 48... Kf5 {[%clk 0:00:22.8]}
49. Nf3 {[%clk 0:00:06.2]} 49... Kg4 {[%clk 0:00:22.1]} 50. Ne1 {[%clk
0:00:05.4]} 50... Ra3 {[%clk 0:00:20.6]} 51. Nd3 {[%clk 0:00:06.1]} 51... e4
{[%clk 0:00:20.7]} 52. Ne5+ {[%clk 0:00:06.4]} 52... Kf5 {[%clk 0:00:21.6]} 53.
Nc4 {[%clk 0:00:08]} 53... Rd3+ {[%clk 0:00:21.9]} 54. Ke1 {[%clk 0:00:08.6]}
54... e3 {[%clk 0:00:21.3]} 55. Ng3+ {[%clk 0:00:09.1]} 55... Kf4 {[%clk
0:00:22.2]} 56. Ne2+ {[%clk 0:00:08.8]} 56... Ke4 {[%clk 0:00:23.5]} 57. Nb2
{[%clk 0:00:07.8]} 57... Rb3 {[%clk 0:00:22.7]} 58. Nd1 {[%clk 0:00:08.5]} 58...
g5 {[%clk 0:00:20.4]} 59. Ng3+ {[%clk 0:00:06.6]} 59... Kf3 {[%clk 0:00:19.9]}
60. Nf5 {[%clk 0:00:08.1]} 60... Rd3 {[%clk 0:00:18.4]} 61. Ne7 {[%clk
0:00:02.9]} 61... e2 {[%clk 0:00:18.6]} 62. Nf2 {[%clk 0:00:04.2]} 62... Ra3
{[%clk 0:00:18.9]} 63. Nd5 {[%clk 0:00:03.8]} 63... Ra1+ {[%clk 0:00:19.9]} 0-1

[Event "*** Titled Tuesday Blitz"]
[Site "Chess.com"]
[Date "2019.01.01"]
[Round "2"]
[White "xamax2000"]
[Black "WPWPWP-2015"]
[Result "1-0"]
[WhiteElo "2474"]
[BlackElo "2281"]
[TimeControl "180+2"]
[EndTime "13:23:37 PST"]
[Termination "xamax2000 won by checkmate"]

1. e4 {[%clk 0:03:01.9]} 1... c5 {[%clk 0:02:59.5]} 2. Nf3 {[%clk 0:03:02.4]}
2... d6 {[%clk 0:03:00.1]} 3. Bb5+ {[%clk 0:03:00.1]} 3... Nd7 {[%clk
0:03:00.5]} 4. d4 {[%clk 0:02:53.1]} 4... cxd4 {[%clk 0:03:00.2]} 5. Qxd4 {[%clk
0:02:46]} 5... a6 {[%clk 0:03:00.3]} 6. Bxd7+ {[%clk 0:02:20.9]} 6... Bxd7
{[%clk 0:03:01]} 7. Nc3 {[%clk 0:02:22.8]} 7... Nf6 {[%clk 0:02:59.8]} 8. Bg5
{[%clk 0:02:19.1]} 8... e6 {[%clk 0:02:49]} 9. O-O-O {[%clk 0:02:13.6]} 9... Bc6
{[%clk 0:02:49.3]} 10. e5 {[%clk 0:01:55.1]} 10... dxe5 {[%clk 0:02:46]} 11.
Qxd8+ {[%clk 0:01:46.5]} 11... Rxd8 {[%clk 0:02:45.6]} 12. Rxd8+ {[%clk
0:01:48.4]} 12... Kxd8 {[%clk 0:02:46.2]} 13. Nxe5 {[%clk 0:01:49.8]} 13... Be8
{[%clk 0:02:44.8]} 14. Rd1+ {[%clk 0:01:46.7]} 14... Kc8 {[%clk 0:02:42]} 15.
Bf4 {[%clk 0:01:38.4]} 15... Bc5 {[%clk 0:02:35.1]} 16. f3 {[%clk 0:01:33.4]}
16... Bb4 {[%clk 0:02:26.9]} 17. Nc4 {[%clk 0:01:12.3]} 17... b5 {[%clk
0:02:11.2]} 18. Nd6+ {[%clk 0:01:03.6]} 18... Bxd6 {[%clk 0:02:09.8]} 19. Rxd6
{[%clk 0:01:05.5]} 19... b4 {[%clk 0:01:49.6]} 20. Ne4 {[%clk 0:00:58.4]} 20...
Bb5 {[%clk 0:01:27.7]} 21. Rb6 {[%clk 0:00:48.7]} 21... Nd7 {[%clk 0:00:37.3]}
22. Nd6+ {[%clk 0:00:47.7]} 22... Kc7 {[%clk 0:00:21.3]} 23. Rxb5 {[%clk
0:00:30.2]} 23... axb5 {[%clk 0:00:21.6]} 24. Nxf7+ {[%clk 0:00:29.9]} 24... e5
{[%clk 0:00:22.8]} 25. Nxh8 {[%clk 0:00:30.8]} 25... exf4 {[%clk 0:00:23.4]} 26.
Nf7 {[%clk 0:00:30.5]} 26... Kc6 {[%clk 0:00:22.8]} 27. Ng5 {[%clk 0:00:21.2]}
27... h6 {[%clk 0:00:19.4]} 28. Ne6 {[%clk 0:00:22.4]} 28... g5 {[%clk
0:00:19.8]} 29. Nd4+ {[%clk 0:00:23.8]} 29... Kc5 {[%clk 0:00:19.3]} 30. Nf5
{[%clk 0:00:25.7]} 30... h5 {[%clk 0:00:18.9]} 31. Ng7 {[%clk 0:00:26.2]} 31...
Kd5 {[%clk 0:00:12.4]} 32. Nxh5 {[%clk 0:00:22.5]} 32... Ke6 {[%clk 0:00:05.6]}
33. Ng7+ {[%clk 0:00:23.3]} 33... Kf6 {[%clk 0:00:04.5]} 34. Ne8+ {[%clk
0:00:24.6]} 34... Ke5 {[%clk 0:00:05]} 35. Nc7 {[%clk 0:00:26.5]} 35... Kd4
{[%clk 0:00:05.1]} 36. Kd2 {[%clk 0:00:26.7]} 36... Ne5 {[%clk 0:00:05.5]} 37.
b3 {[%clk 0:00:23.5]} 37... Kc5 {[%clk 0:00:03.7]} 38. Ne6+ {[%clk 0:00:24.3]}
38... Kd5 {[%clk 0:00:04.1]} 39. Nxg5 {[%clk 0:00:26.2]} 39... Nc6 {[%clk
0:00:04.8]} 40. Nh3 {[%clk 0:00:26.4]} 40... Ke5 {[%clk 0:00:05.4]} 41. Nf2
{[%clk 0:00:27.7]} 41... Nd4 {[%clk 0:00:05.6]} 42. Nd3+ {[%clk 0:00:28.8]}
42... Kf5 {[%clk 0:00:06.5]} 43. Nxb4 {[%clk 0:00:30.7]} 43... Ne6 {[%clk
0:00:06.4]} 44. g4+ {[%clk 0:00:26.8]} 44... Kg5 {[%clk 0:00:06.5]} 45. Nd3
{[%clk 0:00:23.5]} 45... Nd4 {[%clk 0:00:06.9]} 46. Ne5 {[%clk 0:00:24.1]} 46...
Kf6 {[%clk 0:00:07.4]} 47. c3 {[%clk 0:00:24.7]} 47... Ne6 {[%clk 0:00:03.9]}
48. Nd3 {[%clk 0:00:25.3]} 48... Kg5 {[%clk 0:00:04.2]} 49. Ke2 {[%clk
0:00:26.6]} 49... Kh4 {[%clk 0:00:05]} 50. Kf2 {[%clk 0:00:28]} 50... Kh3 {[%clk
0:00:05.7]} 51. Kg1 {[%clk 0:00:28.2]} 51... Kh4 {[%clk 0:00:06.1]} 52. Kg2
{[%clk 0:00:29.2]} 52... b4 {[%clk 0:00:06.2]} 53. Nxb4 {[%clk 0:00:27]} 53...
Nc5 {[%clk 0:00:05.3]} 54. Nd5 {[%clk 0:00:28.1]} 54... Nd3 {[%clk 0:00:05.8]}
55. b4 {[%clk 0:00:25.6]} 55... Ne1+ {[%clk 0:00:05.1]} 56. Kf2 {[%clk
0:00:26.7]} 56... Nd3+ {[%clk 0:00:05.8]} 57. Ke2 {[%clk 0:00:28]} 57... Ne5
{[%clk 0:00:03.8]} 58. Nxf4 {[%clk 0:00:27.7]} 58... Kg5 {[%clk 0:00:04.4]} 59.
Nd3 {[%clk 0:00:26.6]} 59... Nc4 {[%clk 0:00:04.3]} 60. b5 {[%clk 0:00:26.3]}
60... Kh4 {[%clk 0:00:05.4]} 61. a4 {[%clk 0:00:25.9]} 61... Kh3 {[%clk
0:00:06.5]} 62. g5 {[%clk 0:00:26.8]} 62... Kg2 {[%clk 0:00:06.8]} 63. g6 {[%clk
0:00:28.2]} 63... Kh3 {[%clk 0:00:05.8]} 64. g7 {[%clk 0:00:29.3]} 64... Nd6
{[%clk 0:00:05]} 65. g8=Q {[%clk 0:00:29.1]} 65... Nf5 {[%clk 0:00:06.3]} 66.
Nf4+ {[%clk 0:00:28.1]} 66... Kxh2 {[%clk 0:00:06]} 67. Qg2# {[%clk 0:00:29.4]}
1-0

[Event "*** Titled Tuesday Blitz"]
[Site "Chess.com"]
[Date "2019.01.01"]
[Round "2"]
[White "cherryandmint"]
[Black "mishanick"]
[Result "1-0"]
[WhiteElo "2617"]
[BlackElo "2989"]
[TimeControl "180+2"]
[EndTime "13:23:45 PST"]
[Termination "cherryandmint won by resignation"]

1. e4 {[%clk 0:03:01.9]} 1... c5 {[%clk 0:03:00.5]} 2. Nf3 {[%clk 0:03:02.9]}
2... d6 {[%clk 0:03:02.1]} 3. d4 {[%clk 0:03:04.1]} 3... cxd4 {[%clk 0:03:04]}
4. Nxd4 {[%clk 0:03:05.7]} 4... Nf6 {[%clk 0:03:05.6]} 5. Nc3 {[%clk 0:03:06.8]}
5... a6 {[%clk 0:03:07.3]} 6. g3 {[%clk 0:03:08]} 6... e5 {[%clk 0:03:08.1]} 7.
Nde2 {[%clk 0:03:08.3]} 7... Be7 {[%clk 0:03:09]} 8. Bg2 {[%clk 0:03:09.1]} 8...
O-O {[%clk 0:03:09.6]} 9. O-O {[%clk 0:03:10.1]} 9... b5 {[%clk 0:03:11.2]} 10.
Nd5 {[%clk 0:03:11.3]} 10... Nxd5 {[%clk 0:03:12]} 11. Qxd5 {[%clk 0:03:12]}
11... Ra7 {[%clk 0:03:12.1]} 12. Be3 {[%clk 0:03:13.3]} 12... Be6 {[%clk
0:03:12.8]} 13. Qd2 {[%clk 0:03:12.7]} 13... Rd7 {[%clk 0:03:13.8]} 14. Nc3
{[%clk 0:03:10.4]} 14... Nc6 {[%clk 0:03:14.3]} 15. Nd5 {[%clk 0:03:11.1]} 15...
Bxd5 {[%clk 0:03:09.5]} 16. Qxd5 {[%clk 0:03:11.5]} 16... Nd4 {[%clk 0:03:08.7]}
17. Bxd4 {[%clk 0:02:55]} 17... exd4 {[%clk 0:03:10.6]} 18. Qxd4 {[%clk
0:02:56.5]} 18... Bf6 {[%clk 0:03:12.1]} 19. Qb4 {[%clk 0:02:57.7]} 19... Qb6
{[%clk 0:03:13.1]} 20. a4 {[%clk 0:02:49.9]} 20... Rc8 {[%clk 0:03:11.7]} 21. c3
{[%clk 0:02:47.3]} 21... g6 {[%clk 0:03:06.4]} 22. axb5 {[%clk 0:02:34.3]} 22...
axb5 {[%clk 0:03:06.9]} 23. Ra5 {[%clk 0:02:28.1]} 23... Rc5 {[%clk 0:03:05.2]}
24. Rfa1 {[%clk 0:02:20]} 24... Kg7 {[%clk 0:03:06.1]} 25. Ra8 {[%clk
0:02:11.2]} 25... Rc4 {[%clk 0:03:05.6]} 26. Qb3 {[%clk 0:02:09.2]} 26... Qc5
{[%clk 0:03:03.5]} 27. Rb8 {[%clk 0:02:00.3]} 27... b4 {[%clk 0:02:48.3]} 28.
Ra4 {[%clk 0:01:19.6]} 28... Ra7 {[%clk 0:01:49.6]} 29. Rxa7 {[%clk 0:01:06.7]}
29... Qxa7 {[%clk 0:01:49.2]} 30. Rxb4 {[%clk 0:00:29.5]} 30... Rc7 {[%clk
0:01:50.1]} 31. Ra4 {[%clk 0:00:27.3]} 31... Qc5 {[%clk 0:01:50.9]} 32. Qb4
{[%clk 0:00:20.9]} 32... Qe5 {[%clk 0:01:46]} 33. Ra5 {[%clk 0:00:20.3]} 33...
Qe6 {[%clk 0:01:45]} 34. Ra6 {[%clk 0:00:21.3]} 34... Rd7 {[%clk 0:01:41.5]} 35.
Qb5 {[%clk 0:00:21.4]} 35... Qg4 {[%clk 0:01:36.6]} 36. h3 {[%clk 0:00:22]}
36... Qd1+ {[%clk 0:01:37.6]} 37. Kh2 {[%clk 0:00:23.4]} 37... Re7 {[%clk
0:01:37.9]} 38. Qd5 {[%clk 0:00:22.2]} 38... Qxd5 {[%clk 0:01:38.7]} 39. exd5
{[%clk 0:00:23.8]} 39... Re2 {[%clk 0:01:40.2]} 40. Rxd6 {[%clk 0:00:18.8]}
40... Rxb2 {[%clk 0:01:40.9]} 41. Rc6 {[%clk 0:00:18.9]} 41... Rxf2 {[%clk
0:01:41.8]} 42. d6 {[%clk 0:00:19.8]} 42... Rd2 {[%clk 0:01:42.5]} 43. c4 {[%clk
0:00:20.8]} 43... Be5 {[%clk 0:01:42.8]} 44. c5 {[%clk 0:00:22]} 44... Rd3
{[%clk 0:01:44.4]} 45. Rc7 {[%clk 0:00:20.9]} 45... Bxg3+ {[%clk 0:01:38.9]} 46.
Kg1 {[%clk 0:00:22.2]} 46... h5 {[%clk 0:01:27.6]} 47. Bf1 {[%clk 0:00:22]}
47... Rd4 {[%clk 0:01:25.6]} 48. Re7 {[%clk 0:00:19.1]} 48... Bh4 {[%clk
0:01:11.4]} 49. Rc7 {[%clk 0:00:19.4]} 49... Rd1 {[%clk 0:00:58.6]} 50. Kg2
{[%clk 0:00:19.7]} 50... Rd2+ {[%clk 0:00:59.4]} 51. Kg1 {[%clk 0:00:20.5]}
51... Rd1 {[%clk 0:00:43.3]} 52. Kg2 {[%clk 0:00:21.6]} 52... Rd4 {[%clk
0:00:44.2]} 53. Bb5 {[%clk 0:00:21.5]} 53... Kf8 {[%clk 0:00:38.9]} 54. Rc8+
{[%clk 0:00:22]} 54... Kg7 {[%clk 0:00:39.8]} 55. Rc7 {[%clk 0:00:23.9]} 55...
Kf8 {[%clk 0:00:41.2]} 56. Rc8+ {[%clk 0:00:24.8]} 56... Kg7 {[%clk 0:00:42.6]}
57. d7 {[%clk 0:00:26.3]} 57... Rb4 {[%clk 0:00:30.3]} 58. c6 {[%clk 0:00:27.5]}
58... Rb2+ {[%clk 0:00:27.3]} 59. Kf3 {[%clk 0:00:28.3]} 59... Rb3+ {[%clk
0:00:28.5]} 60. Ke2 {[%clk 0:00:29.5]} 60... Rb2+ {[%clk 0:00:28.6]} 61. Ke3
{[%clk 0:00:28.3]} 61... Bg5+ {[%clk 0:00:29.3]} 62. Kd4 {[%clk 0:00:18.1]}
62... Rd2+ {[%clk 0:00:09.5]} 63. Kc4 {[%clk 0:00:17.8]} 63... Bf4 {[%clk
0:00:06.3]} 64. c7 {[%clk 0:00:18.8]} 64... Rc2+ {[%clk 0:00:06.9]} 65. Kb3
{[%clk 0:00:19.1]} 65... Rxc7 {[%clk 0:00:07.5]} 66. d8=Q {[%clk 0:00:19.2]}
66... Rxc8 {[%clk 0:00:08.7]} 67. Qxc8 {[%clk 0:00:20.6]} 1-0

[Event "*** Titled Tuesday Blitz"]
[Site "Chess.com"]
[Date "2019.01.01"]
[Round "2"]
[White "gmcorrales"]
[Black "johnathan113"]
[Result "0-1"]
[WhiteElo "2758"]
[BlackElo "2563"]
[TimeControl "180+2"]
[EndTime "13:23:45 PST"]
[Termination "johnathan113 won by resignation"]

1. e4 {[%clk 0:03:01.8]} 1... c5 {[%clk 0:02:58.6]} 2. f3 {[%clk 0:03:03.4]}
2... g6 {[%clk 0:02:59]} 3. d4 {[%clk 0:03:01]} 3... cxd4 {[%clk 0:02:56.8]} 4.
Qxd4 {[%clk 0:03:02.3]} 4... Nf6 {[%clk 0:02:58.5]} 5. c4 {[%clk 0:03:03.6]}
5... Nc6 {[%clk 0:02:59.6]} 6. Qe3 {[%clk 0:03:04.3]} 6... Bg7 {[%clk
0:02:57.3]} 7. Nc3 {[%clk 0:03:05.5]} 7... O-O {[%clk 0:02:56.8]} 8. Bd3 {[%clk
0:03:04]} 8... e6 {[%clk 0:02:57.8]} 9. e5 {[%clk 0:02:42.7]} 9... Ne8 {[%clk
0:02:31.3]} 10. f4 {[%clk 0:02:42.4]} 10... d6 {[%clk 0:02:32.8]} 11. Nf3 {[%clk
0:02:22.4]} 11... dxe5 {[%clk 0:02:33.2]} 12. fxe5 {[%clk 0:02:23.9]} 12... Nxe5
{[%clk 0:02:15.3]} 13. Nxe5 {[%clk 0:02:24.6]} 13... Bxe5 {[%clk 0:02:17.2]} 14.
Qxe5 {[%clk 0:02:25.4]} 14... Qxd3 {[%clk 0:02:18]} 15. Bh6 {[%clk 0:02:25.1]}
15... f6 {[%clk 0:02:18.7]} 16. Qc5 {[%clk 0:01:59.8]} 16... Rf7 {[%clk
0:02:19.4]} 17. Rd1 {[%clk 0:01:58.4]} 17... Qf5 {[%clk 0:02:15.5]} 18. Qxf5
{[%clk 0:01:56.7]} 18... exf5 {[%clk 0:02:17.4]} 19. Rd8 {[%clk 0:01:54.3]}
19... Re7+ {[%clk 0:02:16.3]} 20. Kf2 {[%clk 0:01:50.1]} 20... Kf7 {[%clk
0:02:17.2]} 21. Rhd1 {[%clk 0:01:43.5]} 21... b6 {[%clk 0:02:04.6]} 22. Nd5
{[%clk 0:01:36.6]} 22... Rd7 {[%clk 0:01:56.9]} 23. Rxe8 {[%clk 0:01:37]} 23...
Kxe8 {[%clk 0:01:56.1]} 24. Nxf6+ {[%clk 0:01:35.9]} 24... Kd8 {[%clk
0:01:49.1]} 25. Nxd7 {[%clk 0:01:27.4]} 25... Bxd7 {[%clk 0:01:51]} 26. Bg5+
{[%clk 0:01:15.2]} 26... Kc7 {[%clk 0:01:33]} 27. Bf4+ {[%clk 0:01:16]} 27...
Kd8 {[%clk 0:01:34]} 28. b3 {[%clk 0:01:02]} 28... Rc8 {[%clk 0:01:31.6]} 29.
Kg3 {[%clk 0:00:59.4]} 29... Rc6 {[%clk 0:01:31.1]} 30. Bd6 {[%clk 0:00:59.4]}
30... g5 {[%clk 0:01:00.9]} 31. h4 {[%clk 0:00:55.2]} 31... h6 {[%clk
0:01:02.3]} 32. h5 {[%clk 0:00:49.5]} 32... f4+ {[%clk 0:01:02.9]} 33. Kf3
{[%clk 0:00:49.5]} 33... Ke8 {[%clk 0:00:52.4]} 34. Ke4 {[%clk 0:00:47.1]} 34...
Bg4 {[%clk 0:00:49.3]} 35. Rd2 {[%clk 0:00:44.3]} 35... Bxh5 {[%clk 0:00:46.7]}
36. Kd5 {[%clk 0:00:45.5]} 36... Kd7 {[%clk 0:00:43.8]} 37. Ke5 {[%clk
0:00:45.9]} 37... Ke8 {[%clk 0:00:39.4]} 38. a4 {[%clk 0:00:16.4]} 38... f3
{[%clk 0:00:39.9]} 39. gxf3 {[%clk 0:00:16.6]} 39... Bxf3 {[%clk 0:00:41.8]} 40.
a5 {[%clk 0:00:17.3]} 40... g4 {[%clk 0:00:40.5]} 41. Kf4 {[%clk 0:00:14.6]}
41... Kf7 {[%clk 0:00:33.9]} 42. a6 {[%clk 0:00:15.1]} 42... h5 {[%clk
0:00:33.3]} 43. Be5 {[%clk 0:00:16]} 43... Ke6 {[%clk 0:00:15.8]} 44. Bb8 {[%clk
0:00:15.9]} 44... b5 {[%clk 0:00:12.1]} 45. cxb5 {[%clk 0:00:16.8]} 45... Rb6
{[%clk 0:00:13.6]} 46. Bxa7 {[%clk 0:00:16.6]} 46... Rxb5 {[%clk 0:00:15.2]} 47.
Be3 {[%clk 0:00:11.2]} 47... Rb4+ {[%clk 0:00:15.1]} 48. Kg5 {[%clk 0:00:10.6]}
48... Rxb3 {[%clk 0:00:16.5]} 49. Bc5 {[%clk 0:00:11.4]} 49... g3 {[%clk
0:00:16.6]} 50. Rd6+ {[%clk 0:00:11.6]} 50... Kf7 {[%clk 0:00:15]} 51. Rd7+
{[%clk 0:00:12.3]} 51... Ke6 {[%clk 0:00:16.1]} 52. Rd6+ {[%clk 0:00:13.1]}
52... Ke5 {[%clk 0:00:17.5]} 53. Rf6 {[%clk 0:00:13.1]} 53... g2 {[%clk
0:00:17.2]} 54. Rxf3 {[%clk 0:00:14.2]} 54... Rxf3 {[%clk 0:00:17.4]} 55. a7
{[%clk 0:00:15.1]} 55... Rg3+ {[%clk 0:00:15.8]} 56. Kh4 {[%clk 0:00:16.1]}
56... Rg8 {[%clk 0:00:16]} 57. Kxh5 {[%clk 0:00:17.7]} 57... Kf4 {[%clk
0:00:12.8]} 58. Kh6 {[%clk 0:00:18.6]} 58... Ra8 {[%clk 0:00:11.7]} 59. Kg6
{[%clk 0:00:19.8]} 59... Kf3 {[%clk 0:00:06.6]} 60. Kf6 {[%clk 0:00:21]} 60...
Ke2 {[%clk 0:00:08.5]} 61. Ke6 {[%clk 0:00:22.4]} 61... Kf1 {[%clk 0:00:10]} 62.
Kd6 {[%clk 0:00:23.7]} 62... g1=Q {[%clk 0:00:11.9]} 63. Bxg1 {[%clk 0:00:24.8]}
63... Kxg1 {[%clk 0:00:13.8]} 64. Kc6 {[%clk 0:00:26]} 64... Rxa7 {[%clk
0:00:15.7]} 65. Kb5 {[%clk 0:00:27.1]} 65... Rg7 {[%clk 0:00:17.6]} 0-1

[Event "*** Titled Tuesday Blitz"]
[Site "Chess.com"]
[Date "2019.01.01"]
[Round "2"]
[White "Saitama_Hero"]
[Black "Boundless_Strike"]
[Result "0-1"]
[WhiteElo "2401"]
[BlackElo "2470"]
[TimeControl "180+2"]
[EndTime "13:23:48 PST"]
[Termination "Boundless_Strike won by resignation"]

1. d4 {[%clk 0:03:01.9]} 1... Nf6 {[%clk 0:03:00.4]} 2. Bg5 {[%clk 0:03:02.6]}
2... Ne4 {[%clk 0:03:00.1]} 3. Bf4 {[%clk 0:03:03.3]} 3... g6 {[%clk 0:03:00.3]}
4. f3 {[%clk 0:03:03.1]} 4... Nf6 {[%clk 0:03:01.2]} 5. e4 {[%clk 0:03:04.7]}
5... Bg7 {[%clk 0:03:01.7]} 6. c4 {[%clk 0:03:01.5]} 6... O-O {[%clk 0:03:00.1]}
7. Nc3 {[%clk 0:02:59.4]} 7... c6 {[%clk 0:03:00.9]} 8. Qd2 {[%clk 0:02:51.2]}
8... d5 {[%clk 0:03:00.3]} 9. cxd5 {[%clk 0:02:50.4]} 9... cxd5 {[%clk
0:03:02.2]} 10. e5 {[%clk 0:02:51.8]} 10... Nfd7 {[%clk 0:03:01.6]} 11. Nxd5
{[%clk 0:02:46.1]} 11... Nc6 {[%clk 0:03:02.8]} 12. Bc4 {[%clk 0:02:42.7]} 12...
e6 {[%clk 0:03:01.5]} 13. Bg5 {[%clk 0:02:33.7]} 13... f6 {[%clk 0:02:19.6]} 14.
exf6 {[%clk 0:02:26.7]} 14... Nxf6 {[%clk 0:02:20.8]} 15. Nxf6+ {[%clk
0:02:21.5]} 15... Bxf6 {[%clk 0:02:22.7]} 16. Bxf6 {[%clk 0:02:22.3]} 16... Qxf6
{[%clk 0:02:24.6]} 17. Ne2 {[%clk 0:02:22.1]} 17... Qh4+ {[%clk 0:02:13.8]} 18.
g3 {[%clk 0:02:18.9]} 18... Qf6 {[%clk 0:02:12.4]} 19. O-O {[%clk 0:02:17.8]}
19... Kg7 {[%clk 0:02:10.2]} 20. Rad1 {[%clk 0:02:15.7]} 20... Bd7 {[%clk
0:02:10.9]} 21. Nf4 {[%clk 0:02:09]} 21... Rad8 {[%clk 0:02:10.4]} 22. d5 {[%clk
0:01:39.1]} 22... Ne5 {[%clk 0:02:01.4]} 23. Qc3 {[%clk 0:01:23.7]} 23... Nxc4
{[%clk 0:01:26.5]} 24. Qxc4 {[%clk 0:01:22.2]} 24... e5 {[%clk 0:01:28]} 25. Ne2
{[%clk 0:01:00]} 25... Bh3 {[%clk 0:01:26.8]} 26. Rf2 {[%clk 0:00:59.8]} 26...
Rc8 {[%clk 0:01:19.2]} 27. Qb3 {[%clk 0:00:59.1]} 27... Kh8 {[%clk 0:01:02.3]}
28. Nc3 {[%clk 0:00:59.4]} 28... Bf5 {[%clk 0:00:51.2]} 29. Qxb7 {[%clk
0:00:50.6]} 29... a5 {[%clk 0:00:37.1]} 30. d6 {[%clk 0:00:48.8]} 30... a4
{[%clk 0:00:34]} 31. Qe7 {[%clk 0:00:39.7]} 31... Qxe7 {[%clk 0:00:15.5]} 32.
dxe7 {[%clk 0:00:41.6]} 32... Rfe8 {[%clk 0:00:17.1]} 33. Nxa4 {[%clk
0:00:29.3]} 33... Bc2 {[%clk 0:00:18.2]} 34. Rxc2 {[%clk 0:00:21.5]} 34... Rxc2
{[%clk 0:00:20.1]} 35. Rd8 {[%clk 0:00:20.2]} 35... Rc8 {[%clk 0:00:21.1]} 36.
Rxc8 {[%clk 0:00:19.3]} 36... Rxc8 {[%clk 0:00:23]} 37. Nb6 {[%clk 0:00:18.6]}
37... Re8 {[%clk 0:00:24.7]} 38. Nd5 {[%clk 0:00:20]} 38... Kg7 {[%clk
0:00:26.3]} 39. Kf2 {[%clk 0:00:17.3]} 39... Kf7 {[%clk 0:00:27.9]} 40. Ke3
{[%clk 0:00:18.5]} 40... Rb8 {[%clk 0:00:27.9]} 41. b4 {[%clk 0:00:18.1]} 41...
Ra8 {[%clk 0:00:28.5]} 42. Nc7 {[%clk 0:00:13.6]} 42... Ra3+ {[%clk 0:00:29.4]}
43. Ke4 {[%clk 0:00:13.2]} 43... Kxe7 {[%clk 0:00:30.7]} 44. Kxe5 {[%clk
0:00:14]} 44... Rxa2 {[%clk 0:00:27.9]} 45. Nd5+ {[%clk 0:00:15.1]} 45... Kd7
{[%clk 0:00:14.6]} 46. h4 {[%clk 0:00:17]} 46... Ra3 {[%clk 0:00:09.2]} 47. Kf4
{[%clk 0:00:16.7]} 47... Ke6 {[%clk 0:00:08.2]} 48. Nc7+ {[%clk 0:00:14.5]}
48... Kf6 {[%clk 0:00:07.3]} 49. Nd5+ {[%clk 0:00:13.8]} 49... Ke6 {[%clk
0:00:08.9]} 50. Nc7+ {[%clk 0:00:13.9]} 50... Kd7 {[%clk 0:00:10.4]} 51. Nb5
{[%clk 0:00:14.6]} 51... Rb3 {[%clk 0:00:09.7]} 52. Nd4 {[%clk 0:00:12.3]} 52...
Rxb4 {[%clk 0:00:11.1]} 53. Ke3 {[%clk 0:00:13.6]} 53... Kd6 {[%clk 0:00:08.9]}
54. Ne2 {[%clk 0:00:14.7]} 54... Ke5 {[%clk 0:00:08.2]} 55. Nf4 {[%clk
0:00:12.5]} 55... Rb3+ {[%clk 0:00:07.3]} 56. Nd3+ {[%clk 0:00:14.4]} 56... Kd5
{[%clk 0:00:07.4]} 57. Ke2 {[%clk 0:00:10.5]} 57... Kd4 {[%clk 0:00:08.2]} 58.
Nf4 {[%clk 0:00:10.8]} 58... Rb2+ {[%clk 0:00:09.8]} 59. Kd1 {[%clk 0:00:09.6]}
59... Ke3 {[%clk 0:00:10.9]} 60. Kc1 {[%clk 0:00:07.6]} 60... Rh2 {[%clk
0:00:11.1]} 61. Ne6 {[%clk 0:00:07.1]} 61... Kxf3 {[%clk 0:00:11.2]} 62. Nf8
{[%clk 0:00:07.8]} 62... Kxg3 {[%clk 0:00:09.5]} 63. Nxh7 {[%clk 0:00:09.2]}
63... Rxh4 {[%clk 0:00:10.5]} 64. Nf8 {[%clk 0:00:10.5]} 64... g5 {[%clk
0:00:10.9]} 65. Ng6 {[%clk 0:00:11.7]} 65... Rd4 {[%clk 0:00:11.2]} 0-1